[Event "Early-Titled-Tuesday-Blitz-February-13-2024"]
[Site "Chess.com"]
[Date "2024.02.13"]
[Round "2"]
[White "astralpulse"]
[Black "AlmasRakhmatullaev"]
[Result "0-1"]
[WhiteElo "2602"]
[BlackElo "2876"]
[TimeControl "180+1"]
[EndTime "8:20:39 PST"]
[Termination "AlmasRakhmatullaev won on time"]

1. d4 {[%clk 0:02:58.7]} 1... d5 {[%clk 0:02:59.4]} 2. c4 {[%clk 0:02:58.7]}
2... e5 {[%clk 0:02:59.3]} 3. e3 {[%clk 0:02:56.3]} 3... exd4 {[%clk 0:02:57.7]}
4. exd4 {[%clk 0:02:56.5]} 4... Nc6 {[%clk 0:02:57.5]} 5. Nc3 {[%clk 0:02:55.4]}
5... Nf6 {[%clk 0:02:56.8]} 6. Nf3 {[%clk 0:02:52.7]} 6... Bb4 {[%clk
0:02:51.5]} 7. Be2 {[%clk 0:02:31.3]} 7... dxc4 {[%clk 0:02:44.1]} 8. Bxc4
{[%clk 0:02:28.5]} 8... O-O {[%clk 0:02:42.6]} 9. O-O {[%clk 0:02:28.5]} 9...
Bg4 {[%clk 0:02:42.4]} 10. a3 {[%clk 0:02:06.9]} 10... Bd6 {[%clk 0:02:15.1]}
11. Be3 {[%clk 0:02:06.7]} 11... Qd7 {[%clk 0:02:10.9]} 12. Be2 {[%clk
0:02:03.3]} 12... Rad8 {[%clk 0:02:07.5]} 13. Qb3 {[%clk 0:01:52.5]} 13... b6
{[%clk 0:01:49.5]} 14. Rfd1 {[%clk 0:01:41.4]} 14... Qc8 {[%clk 0:01:33.2]} 15.
Rac1 {[%clk 0:01:31]} 15... Ne7 {[%clk 0:01:11.2]} 16. Nb5 {[%clk 0:01:27.5]}
16... Ned5 {[%clk 0:01:08.4]} 17. Nxa7 {[%clk 0:01:20.5]} 17... Qf5 {[%clk
0:01:06.8]} 18. Nc6 {[%clk 0:01:18.8]} 18... Rde8 {[%clk 0:01:06.3]} 19. Nce5
{[%clk 0:01:04.8]} 19... Bxe5 {[%clk 0:00:59.3]} 20. dxe5 {[%clk 0:01:03.1]}
20... Nxe3 {[%clk 0:00:59.6]} 21. Qxe3 {[%clk 0:00:43]} 21... Bxf3 {[%clk
0:00:58.5]} 22. Bxf3 {[%clk 0:00:36.9]} 22... Rxe5 {[%clk 0:00:58.3]} 23. Qd4
{[%clk 0:00:34.2]} 23... Rfe8 {[%clk 0:00:52.2]} 24. h3 {[%clk 0:00:31.2]} 24...
c5 {[%clk 0:00:50.1]} 25. Qd6 {[%clk 0:00:30.6]} 25... R5e6 {[%clk 0:00:47.5]}
26. Qc7 {[%clk 0:00:30.2]} 26... h5 {[%clk 0:00:44.5]} 27. Rd8 {[%clk
0:00:27.9]} 27... Qg5 {[%clk 0:00:34.2]} 28. Rcd1 {[%clk 0:00:24.2]} 28... Rxd8
{[%clk 0:00:24.1]} 29. Qxd8+ {[%clk 0:00:23.4]} 29... Kh7 {[%clk 0:00:22.2]} 30.
Qd3+ {[%clk 0:00:24]} 30... g6 {[%clk 0:00:21.7]} 31. a4 {[%clk 0:00:24.2]}
31... Qe5 {[%clk 0:00:20.4]} 32. b3 {[%clk 0:00:24.5]} 32... Qf4 {[%clk
0:00:20.2]} 33. Qd8 {[%clk 0:00:23.6]} 33... Kg7 {[%clk 0:00:20]} 34. Qd3 {[%clk
0:00:20.9]} 34... g5 {[%clk 0:00:19.9]} 35. g3 {[%clk 0:00:19.9]} 35... Qe5
{[%clk 0:00:19.9]} 36. Kg2 {[%clk 0:00:18.9]} 36... g4 {[%clk 0:00:19.9]} 37.
hxg4 {[%clk 0:00:19.5]} 37... hxg4 {[%clk 0:00:20.8]} 38. Bb7 {[%clk 0:00:19.9]}
38... Re7 {[%clk 0:00:20.5]} 39. Ba6 {[%clk 0:00:16]} 39... Rd7 {[%clk
0:00:17.5]} 40. Qc2 {[%clk 0:00:15]} 40... Rd4 {[%clk 0:00:14.7]} 41. Bc4 {[%clk
0:00:12.9]} 41... Ne4 {[%clk 0:00:13.8]} 42. Rxd4 {[%clk 0:00:11]} 42... cxd4
{[%clk 0:00:14.7]} 43. Qe2 {[%clk 0:00:10.2]} 43... f5 {[%clk 0:00:14.4]} 44. b4
{[%clk 0:00:10.6]} 44... Kf6 {[%clk 0:00:14.4]} 45. Bd3 {[%clk 0:00:07.5]} 45...
Qd5 {[%clk 0:00:14.4]} 46. Bc4 {[%clk 0:00:05.3]} 46... Qb7 {[%clk 0:00:14.6]}
47. Kf1 {[%clk 0:00:02.1]} 47... Ng5 {[%clk 0:00:11]} 48. Qe8 {[%clk 0:00:01.6]}
48... Qh1+ {[%clk 0:00:09.1]} 49. Ke2 {[%clk 0:00:02.3]} 49... Qf3+ {[%clk
0:00:09.9]} 50. Ke1 {[%clk 0:00:02.7]} 50... Qc3+ {[%clk 0:00:10.2]} 51. Kd1
{[%clk 0:00:02.2]} 51... Qxc4 {[%clk 0:00:10.8]} 52. Qd8+ {[%clk 0:00:02.4]}
52... Kg6 {[%clk 0:00:11.4]} 53. Qg8+ {[%clk 0:00:02.6]} 53... Qxg8 {[%clk
0:00:11.1]} 0-1

[Event "Early-Titled-Tuesday-Blitz-February-13-2024"]
[Site "Chess.com"]
[Date "2024.02.13"]
[Round "2"]
[White "KNVB"]
[Black "RandomNoob04"]
[Result "1-0"]
[WhiteElo "2906"]
[BlackElo "2613"]
[TimeControl "180+1"]
[EndTime "8:20:40 PST"]
[Termination "KNVB won by resignation"]

1. d4 {[%clk 0:03:00.9]} 1... Nf6 {[%clk 0:02:59.8]} 2. Bf4 {[%clk 0:03:01.1]}
2... d5 {[%clk 0:02:58.6]} 3. e3 {[%clk 0:03:01.3]} 3... c5 {[%clk 0:02:59.1]}
4. c3 {[%clk 0:03:01.4]} 4... Nc6 {[%clk 0:02:55.7]} 5. Nd2 {[%clk 0:03:01.6]}
5... e6 {[%clk 0:02:52.1]} 6. Ngf3 {[%clk 0:03:01.5]} 6... cxd4 {[%clk
0:02:51.5]} 7. exd4 {[%clk 0:03:02.4]} 7... Nh5 {[%clk 0:02:51.3]} 8. Be3 {[%clk
0:03:03.1]} 8... Bd6 {[%clk 0:02:50.7]} 9. g3 {[%clk 0:03:03.5]} 9... O-O {[%clk
0:02:48.8]} 10. Bd3 {[%clk 0:03:03.9]} 10... f5 {[%clk 0:02:40.5]} 11. Ne5
{[%clk 0:03:03.5]} 11... Nf6 {[%clk 0:02:38.3]} 12. Ndf3 {[%clk 0:02:52.6]}
12... Ne4 {[%clk 0:02:33.9]} 13. Bf4 {[%clk 0:02:46.9]} 13... Nxe5 {[%clk
0:02:22.7]} 14. Bxe5 {[%clk 0:02:43.3]} 14... Be7 {[%clk 0:02:12.3]} 15. O-O
{[%clk 0:02:31.7]} 15... b6 {[%clk 0:02:04.7]} 16. Ne1 {[%clk 0:02:08.3]} 16...
a5 {[%clk 0:02:03.7]} 17. Qe2 {[%clk 0:01:57.7]} 17... Bd7 {[%clk 0:02:02.4]}
18. f3 {[%clk 0:01:56.5]} 18... Ng5 {[%clk 0:01:59.3]} 19. Bb5 {[%clk
0:01:08.8]} 19... Qe8 {[%clk 0:01:26.9]} 20. Bxd7 {[%clk 0:01:06.7]} 20... Qxd7
{[%clk 0:01:27.8]} 21. a4 {[%clk 0:01:07.1]} 21... Bd6 {[%clk 0:01:10]} 22. Bxd6
{[%clk 0:00:55.7]} 22... Qxd6 {[%clk 0:01:10.9]} 23. Nd3 {[%clk 0:00:56.4]}
23... Nf7 {[%clk 0:01:00]} 24. Rfe1 {[%clk 0:00:46.2]} 24... Rae8 {[%clk
0:01:00]} 25. Kg2 {[%clk 0:00:44.3]} 25... Re7 {[%clk 0:00:50.1]} 26. Qd2 {[%clk
0:00:21.6]} 26... e5 {[%clk 0:00:31.2]} 27. dxe5 {[%clk 0:00:21]} 27... Nxe5
{[%clk 0:00:32.1]} 28. Nxe5 {[%clk 0:00:21.2]} 28... Rxe5 {[%clk 0:00:31.8]} 29.
Rxe5 {[%clk 0:00:22.1]} 29... Qxe5 {[%clk 0:00:32.7]} 30. Re1 {[%clk 0:00:22.8]}
30... Qd6 {[%clk 0:00:30.8]} 31. Rd1 {[%clk 0:00:16.4]} 31... Re8 {[%clk
0:00:18.5]} 32. Kf2 {[%clk 0:00:16.6]} 32... Qc5+ {[%clk 0:00:13.8]} 33. Qd4
{[%clk 0:00:17.1]} 33... Kf7 {[%clk 0:00:09.2]} 34. Qxc5 {[%clk 0:00:12.9]}
34... bxc5 {[%clk 0:00:10.1]} 35. Rxd5 {[%clk 0:00:13.5]} 35... Rb8 {[%clk
0:00:11]} 36. Rxc5 {[%clk 0:00:09]} 36... Rxb2+ {[%clk 0:00:10.5]} 37. Ke3
{[%clk 0:00:09.6]} 37... g6 {[%clk 0:00:08.4]} 38. h4 {[%clk 0:00:09.2]} 38...
Rc2 {[%clk 0:00:05.6]} 39. g4 {[%clk 0:00:04.1]} 39... fxg4 {[%clk 0:00:05.5]}
40. fxg4 {[%clk 0:00:05]} 40... Rh2 {[%clk 0:00:05.9]} 41. h5 {[%clk 0:00:04.9]}
41... Rh4 {[%clk 0:00:04.3]} 42. hxg6+ {[%clk 0:00:03.1]} 42... Kxg6 {[%clk
0:00:03.6]} 43. Kf4 {[%clk 0:00:03]} 43... Rh3 {[%clk 0:00:03.8]} 44. Rc6+
{[%clk 0:00:02]} 44... Kg7 {[%clk 0:00:04]} 45. Kg5 {[%clk 0:00:02.2]} 45... h6+
{[%clk 0:00:01.7]} 46. Kf4 {[%clk 0:00:02.4]} 46... Rd3 {[%clk 0:00:02.1]} 47.
Rc5 {[%clk 0:00:02.5]} 47... Kg6 {[%clk 0:00:02]} 48. Ke4 {[%clk 0:00:02.3]}
48... Rg3 {[%clk 0:00:02.4]} 49. Kf4 {[%clk 0:00:02.4]} 49... Rd3 {[%clk
0:00:03.1]} 50. Rc6+ {[%clk 0:00:02.6]} 50... Kg7 {[%clk 0:00:03.3]} 51. Kf5
{[%clk 0:00:02]} 51... Rf3+ {[%clk 0:00:03]} 52. Ke5 {[%clk 0:00:02.5]} 52...
Re3+ {[%clk 0:00:02.6]} 53. Kd5 {[%clk 0:00:02.8]} 53... Rg3 {[%clk 0:00:02.7]}
54. Rc4 {[%clk 0:00:03.2]} 54... Kg6 {[%clk 0:00:02.2]} 55. Kc5 {[%clk
0:00:03.8]} 55... Kg5 {[%clk 0:00:02.1]} 56. Kb5 {[%clk 0:00:03.6]} 56... Rxg4
{[%clk 0:00:01.2]} 57. Rxg4+ {[%clk 0:00:04.5]} 57... Kxg4 {[%clk 0:00:02.1]}
58. c4 {[%clk 0:00:05.1]} 58... h5 {[%clk 0:00:02.9]} 59. c5 {[%clk 0:00:06]}
59... h4 {[%clk 0:00:03.8]} 60. c6 {[%clk 0:00:06.9]} 60... h3 {[%clk
0:00:04.7]} 61. c7 {[%clk 0:00:07.8]} 61... h2 {[%clk 0:00:05.6]} 62. c8=Q+
{[%clk 0:00:08.7]} 1-0

[Event "Early-Titled-Tuesday-Blitz-February-13-2024"]
[Site "Chess.com"]
[Date "2024.02.13"]
[Round "2"]
[White "Kobalia"]
[Black "Statham_01"]
[Result "0-1"]
[WhiteElo "2799"]
[BlackElo "2590"]
[TimeControl "180+1"]
[EndTime "8:20:41 PST"]
[Termination "Statham_01 won on time"]

1. e4 {[%clk 0:03:00.9]} 1... e5 {[%clk 0:02:59.9]} 2. Nf3 {[%clk 0:03:00.7]}
2... Nf6 {[%clk 0:03:00.5]} 3. d4 {[%clk 0:02:57.1]} 3... d5 {[%clk 0:02:59.6]}
4. dxe5 {[%clk 0:02:54.5]} 4... Nxe4 {[%clk 0:02:59.4]} 5. Bd3 {[%clk
0:02:54.7]} 5... Nc5 {[%clk 0:02:58.4]} 6. Be2 {[%clk 0:02:54.5]} 6... Nc6
{[%clk 0:02:57.4]} 7. O-O {[%clk 0:02:54.5]} 7... Bg4 {[%clk 0:02:56.4]} 8. Be3
{[%clk 0:02:54.2]} 8... Ne6 {[%clk 0:02:51.6]} 9. c3 {[%clk 0:02:52.3]} 9... Be7
{[%clk 0:02:49.1]} 10. Qb3 {[%clk 0:02:51.7]} 10... O-O {[%clk 0:02:22.7]} 11.
Rd1 {[%clk 0:02:49]} 11... Bxf3 {[%clk 0:02:00.4]} 12. Bxf3 {[%clk 0:02:48.4]}
12... Nxe5 {[%clk 0:02:01.1]} 13. Bxd5 {[%clk 0:02:47]} 13... Bd6 {[%clk
0:01:37.1]} 14. Bxb7 {[%clk 0:02:26.5]} 14... Rb8 {[%clk 0:01:29.5]} 15. Bxa7
{[%clk 0:02:26.3]} 15... Qh4 {[%clk 0:01:03.6]} 16. g3 {[%clk 0:02:17.4]} 16...
Qh5 {[%clk 0:00:51.4]} 17. Nd2 {[%clk 0:01:54.7]} 17... Ng5 {[%clk 0:00:27.4]}
18. Bxb8 {[%clk 0:01:43.2]} 18... Rxb8 {[%clk 0:00:28.3]} 19. Qd5 {[%clk
0:01:42.2]} 19... Ng4 {[%clk 0:00:18.3]} 20. h4 {[%clk 0:01:32]} 20... Nh3+
{[%clk 0:00:10.2]} 21. Kf1 {[%clk 0:00:58]} 21... Qg6 {[%clk 0:00:10]} 22. Ne4
{[%clk 0:00:16.4]} 22... Nhxf2 {[%clk 0:00:05.9]} 23. Re1 {[%clk 0:00:12]} 23...
Nh1 {[%clk 0:00:02.3]} 24. Kg2 {[%clk 0:00:10.1]} 24... Nxg3 {[%clk 0:00:01.7]}
25. Nxg3 {[%clk 0:00:09.4]} 25... Nf6 {[%clk 0:00:02.5]} 26. Qg5 {[%clk
0:00:08.9]} 26... Qc2+ {[%clk 0:00:02.8]} 27. Re2 {[%clk 0:00:08.3]} 27... Qd3
{[%clk 0:00:03.4]} 28. Be4 {[%clk 0:00:06.9]} 28... Qc4 {[%clk 0:00:02.7]} 29.
Rae1 {[%clk 0:00:05.1]} 29... h6 {[%clk 0:00:02.7]} 30. Qd2 {[%clk 0:00:04.1]}
30... Qc5 {[%clk 0:00:03.2]} 31. Qd4 {[%clk 0:00:03.8]} 31... Qa5 {[%clk
0:00:02.7]} 32. Nf5 {[%clk 0:00:03.8]} 32... Rb5 {[%clk 0:00:03]} 33. Nxd6
{[%clk 0:00:03.4]} 33... cxd6 {[%clk 0:00:03.9]} 34. Bc6 {[%clk 0:00:03.5]}
34... Rh5 {[%clk 0:00:03.7]} 35. Bf3 {[%clk 0:00:03.1]} 35... Qd8 {[%clk
0:00:02.7]} 36. Bxh5 {[%clk 0:00:02.2]} 36... Qa8+ {[%clk 0:00:03.6]} 37. Qe4
{[%clk 0:00:01.9]} 37... Qd8 {[%clk 0:00:04.5]} 38. Re3 {[%clk 0:00:02.3]} 38...
Nxe4 {[%clk 0:00:04.9]} 39. Rxe4 {[%clk 0:00:02.7]} 39... Qa8 {[%clk 0:00:03.9]}
40. Bf3 {[%clk 0:00:02.8]} 40... Qxa2 {[%clk 0:00:03.4]} 41. Re8+ {[%clk
0:00:03.3]} 41... Kh7 {[%clk 0:00:03.8]} 42. Be4+ {[%clk 0:00:03.7]} 42... g6
{[%clk 0:00:04.2]} 43. h5 {[%clk 0:00:04.3]} 43... Kg7 {[%clk 0:00:04]} 44. hxg6
{[%clk 0:00:04.7]} 44... Qxb2+ {[%clk 0:00:04.7]} 45. Kg1 {[%clk 0:00:02.8]}
45... Qxc3 {[%clk 0:00:03.1]} 46. Bg2 {[%clk 0:00:02.8]} 46... Qc5+ {[%clk
0:00:02.9]} 47. Kh1 {[%clk 0:00:02.5]} 47... Kxg6 {[%clk 0:00:02.8]} 48. R8e3
{[%clk 0:00:01.5]} 48... Qh5+ {[%clk 0:00:02.5]} 49. Rh3 {[%clk 0:00:01.1]}
49... Qc5 {[%clk 0:00:03.4]} 50. Rg3+ {[%clk 0:00:01.3]} 50... Kh7 {[%clk
0:00:03.4]} 51. Rf1 {[%clk 0:00:01.6]} 51... f5 {[%clk 0:00:03.5]} 52. Bh3
{[%clk 0:00:01.1]} 52... f4 {[%clk 0:00:02.8]} 0-1

[Event "Early-Titled-Tuesday-Blitz-February-13-2024"]
[Site "Chess.com"]
[Date "2024.02.13"]
[Round "2"]
[White "secrethawk1"]
[Black "nj123456"]
[Result "0-1"]
[WhiteElo "2488"]
[BlackElo "2296"]
[TimeControl "180+1"]
[EndTime "8:20:41 PST"]
[Termination "nj123456 won by checkmate"]

1. e3 {[%clk 0:03:00.3]} 1... d5 {[%clk 0:02:59.2]} 2. d4 {[%clk 0:03:01.2]}
2... Nf6 {[%clk 0:02:58.3]} 3. c4 {[%clk 0:03:01.8]} 3... e6 {[%clk 0:02:57.7]}
4. Nc3 {[%clk 0:03:00.8]} 4... Be7 {[%clk 0:02:57.7]} 5. Nf3 {[%clk 0:03:01.3]}
5... O-O {[%clk 0:02:58.2]} 6. Bd3 {[%clk 0:03:01.8]} 6... a6 {[%clk 0:02:57.4]}
7. O-O {[%clk 0:03:02]} 7... dxc4 {[%clk 0:02:57.4]} 8. Bxc4 {[%clk 0:03:02.9]}
8... b5 {[%clk 0:02:57.8]} 9. Bd3 {[%clk 0:03:03.8]} 9... Bb7 {[%clk 0:02:57.8]}
10. a4 {[%clk 0:03:04.4]} 10... b4 {[%clk 0:02:57.6]} 11. Ne2 {[%clk 0:03:04]}
11... Nbd7 {[%clk 0:02:57.8]} 12. Qc2 {[%clk 0:03:04.1]} 12... c5 {[%clk
0:02:53.9]} 13. Ne5 {[%clk 0:02:56.7]} 13... cxd4 {[%clk 0:02:48.4]} 14. Nxd7
{[%clk 0:02:41.7]} 14... Qxd7 {[%clk 0:02:45.3]} 15. exd4 {[%clk 0:02:31.8]}
15... Rac8 {[%clk 0:02:41.1]} 16. Qd2 {[%clk 0:02:23.4]} 16... Rfd8 {[%clk
0:02:36]} 17. Qf4 {[%clk 0:02:09.1]} 17... Qd5 {[%clk 0:02:34.7]} 18. Qg3 {[%clk
0:02:07.7]} 18... Ne4 {[%clk 0:02:14.6]} 19. Qf3 {[%clk 0:02:01.7]} 19... Nf6
{[%clk 0:01:55.1]} 20. Qh3 {[%clk 0:01:54.9]} 20... a5 {[%clk 0:01:53.4]} 21.
Be3 {[%clk 0:01:47.8]} 21... Qh5 {[%clk 0:01:29]} 22. Qxh5 {[%clk 0:01:39.3]}
22... Nxh5 {[%clk 0:01:29.9]} 23. Rac1 {[%clk 0:01:36.8]} 23... Nf6 {[%clk
0:01:24.2]} 24. Bg5 {[%clk 0:01:16.2]} 24... h6 {[%clk 0:01:23.2]} 25. Bh4
{[%clk 0:01:12.9]} 25... g5 {[%clk 0:01:17.5]} 26. Bg3 {[%clk 0:01:11.6]} 26...
Nd5 {[%clk 0:01:12.6]} 27. Rfd1 {[%clk 0:01:06]} 27... Bf6 {[%clk 0:01:10.6]}
28. Be4 {[%clk 0:00:54.8]} 28... Kg7 {[%clk 0:01:09.9]} 29. f3 {[%clk
0:00:45.1]} 29... Ba6 {[%clk 0:01:09.6]} 30. Kf2 {[%clk 0:00:30.7]} 30... h5
{[%clk 0:00:59.9]} 31. h3 {[%clk 0:00:19.5]} 31... h4 {[%clk 0:00:59.7]} 32. Bh2
{[%clk 0:00:18.1]} 32... Bxe2 {[%clk 0:00:55.3]} 33. Kxe2 {[%clk 0:00:14.7]}
33... Rxc1 {[%clk 0:00:55.8]} 34. Rxc1 {[%clk 0:00:13.5]} 34... Bxd4 {[%clk
0:00:56.4]} 35. b3 {[%clk 0:00:07.8]} 35... Nc3+ {[%clk 0:00:56.4]} 36. Kf1
{[%clk 0:00:06.8]} 36... Be3 {[%clk 0:00:56.3]} 37. Re1 {[%clk 0:00:06.1]} 37...
Bd2 {[%clk 0:00:52.5]} 38. Ra1 {[%clk 0:00:05.3]} 38... f6 {[%clk 0:00:50.7]}
39. Bc6 {[%clk 0:00:02.8]} 39... Be3 {[%clk 0:00:50.2]} 40. Be4 {[%clk
0:00:01.8]} 40... Rd2 {[%clk 0:00:47.5]} 41. Bc7 {[%clk 0:00:01.7]} 41... Rf2+
{[%clk 0:00:45.4]} 42. Ke1 {[%clk 0:00:02.3]} 42... Rxg2 {[%clk 0:00:42.9]} 43.
Bd3 {[%clk 0:00:01.5]} 43... Rd2 {[%clk 0:00:37.6]} 44. Bf1 {[%clk 0:00:02.4]}
44... Rb2 {[%clk 0:00:27.4]} 45. Bd3 {[%clk 0:00:02.4]} 45... Rxb3 {[%clk
0:00:19.8]} 46. Bxa5 {[%clk 0:00:02.6]} 46... Nxa4 {[%clk 0:00:19.3]} 47. Rxa4
{[%clk 0:00:01.6]} 47... Rxd3 {[%clk 0:00:19.5]} 48. Ke2 {[%clk 0:00:01.7]}
48... Rb3 {[%clk 0:00:17.3]} 49. Bxb4 {[%clk 0:00:02.4]} 49... Bf4 {[%clk
0:00:17.4]} 50. Bd2 {[%clk 0:00:01.8]} 50... Rb2 {[%clk 0:00:17]} 51. Ra7+
{[%clk 0:00:02]} 51... Kg6 {[%clk 0:00:17.1]} 52. Rd7 {[%clk 0:00:01.8]} 52...
Rxd2+ {[%clk 0:00:18]} 53. Rxd2 {[%clk 0:00:02.7]} 53... Bxd2 {[%clk 0:00:18.5]}
54. Kxd2 {[%clk 0:00:03.6]} 54... Kf5 {[%clk 0:00:18.9]} 55. Ke3 {[%clk
0:00:04.5]} 55... e5 {[%clk 0:00:19.4]} 56. Kf2 {[%clk 0:00:04.4]} 56... Kf4
{[%clk 0:00:20.3]} 57. Ke2 {[%clk 0:00:04.6]} 57... f5 {[%clk 0:00:21.2]} 58.
Kf2 {[%clk 0:00:05.5]} 58... e4 {[%clk 0:00:22.1]} 59. fxe4 {[%clk 0:00:06.4]}
59... fxe4 {[%clk 0:00:23]} 60. Ke2 {[%clk 0:00:06.9]} 60... Kg3 {[%clk
0:00:23.5]} 61. Ke3 {[%clk 0:00:07.3]} 61... Kxh3 {[%clk 0:00:24.4]} 62. Kxe4
{[%clk 0:00:08.2]} 62... Kg2 {[%clk 0:00:24.6]} 63. Kf5 {[%clk 0:00:09.1]} 63...
h3 {[%clk 0:00:25.5]} 64. Kxg5 {[%clk 0:00:10]} 64... h2 {[%clk 0:00:26.4]} 65.
Kg6 {[%clk 0:00:10.9]} 65... h1=Q {[%clk 0:00:27]} 66. Kg5 {[%clk 0:00:11.8]}
66... Qh3 {[%clk 0:00:27.5]} 67. Kf6 {[%clk 0:00:11.7]} 67... Qh5 {[%clk
0:00:27.3]} 68. Ke7 {[%clk 0:00:12]} 68... Qg6 {[%clk 0:00:27.5]} 69. Kf8 {[%clk
0:00:12.9]} 69... Qh7 {[%clk 0:00:27.7]} 70. Ke8 {[%clk 0:00:11.5]} 70... Kf3
{[%clk 0:00:28.6]} 71. Kd8 {[%clk 0:00:12.4]} 71... Kf4 {[%clk 0:00:29.5]} 72.
Kc8 {[%clk 0:00:13.3]} 72... Ke5 {[%clk 0:00:30.4]} 73. Kb8 {[%clk 0:00:14.2]}
73... Ke6 {[%clk 0:00:31.3]} 74. Kc8 {[%clk 0:00:15]} 74... Kd6 {[%clk
0:00:31.4]} 75. Kd8 {[%clk 0:00:15.9]} 75... Qh8# {[%clk 0:00:31.5]} 0-1

[Event "Early-Titled-Tuesday-Blitz-February-13-2024"]
[Site "Chess.com"]
[Date "2024.02.13"]
[Round "2"]
[White "Felix-Rose"]
[Black "WindWhistler11"]
[Result "0-1"]
[WhiteElo "2228"]
[BlackElo "2501"]
[TimeControl "180+1"]
[EndTime "8:20:42 PST"]
[Termination "WindWhistler11 won by checkmate"]

1. e4 {[%clk 0:02:59.6]} 1... e6 {[%clk 0:02:59.8]} 2. d4 {[%clk 0:02:59.7]}
2... d5 {[%clk 0:02:59.5]} 3. Nc3 {[%clk 0:03:00.3]} 3... Bb4 {[%clk 0:02:58.9]}
4. exd5 {[%clk 0:02:59.2]} 4... exd5 {[%clk 0:02:53]} 5. Bd3 {[%clk 0:02:59.5]}
5... Ne7 {[%clk 0:02:52.8]} 6. Ne2 {[%clk 0:02:59.6]} 6... Nbc6 {[%clk
0:02:53.3]} 7. O-O {[%clk 0:02:59.1]} 7... Bg4 {[%clk 0:02:53.7]} 8. f3 {[%clk
0:02:56.3]} 8... Bh5 {[%clk 0:02:53.8]} 9. Nf4 {[%clk 0:02:55.2]} 9... Bg6
{[%clk 0:02:49.8]} 10. Nce2 {[%clk 0:02:53.3]} 10... Bd6 {[%clk 0:02:47.4]} 11.
c3 {[%clk 0:02:49.8]} 11... Qd7 {[%clk 0:02:46.2]} 12. a4 {[%clk 0:02:48.6]}
12... a6 {[%clk 0:02:43.5]} 13. b4 {[%clk 0:02:48.1]} 13... O-O {[%clk
0:02:43.3]} 14. Nxg6 {[%clk 0:02:46.3]} 14... hxg6 {[%clk 0:02:41.8]} 15. Qc2
{[%clk 0:02:22.3]} 15... Nd8 {[%clk 0:02:29.5]} 16. Bd2 {[%clk 0:02:20.8]} 16...
Ne6 {[%clk 0:02:29.1]} 17. Rae1 {[%clk 0:02:20.4]} 17... a5 {[%clk 0:02:23.2]}
18. b5 {[%clk 0:02:14.5]} 18... c5 {[%clk 0:02:23.2]} 19. Qb1 {[%clk 0:01:50.7]}
19... Rac8 {[%clk 0:02:05.5]} 20. g3 {[%clk 0:01:44.8]} 20... Rfe8 {[%clk
0:01:54.5]} 21. Kg2 {[%clk 0:01:44.8]} 21... Qc7 {[%clk 0:01:41]} 22. f4 {[%clk
0:01:32]} 22... cxd4 {[%clk 0:01:21.8]} 23. cxd4 {[%clk 0:01:31.9]} 23... Qb6
{[%clk 0:01:20.8]} 24. Qb2 {[%clk 0:01:25]} 24... f5 {[%clk 0:01:00.5]} 25. Rc1
{[%clk 0:01:01.8]} 25... Kf7 {[%clk 0:00:57.1]} 26. Rxc8 {[%clk 0:01:00.8]}
26... Nxc8 {[%clk 0:00:50.5]} 27. Re1 {[%clk 0:00:57.7]} 27... Bb8 {[%clk
0:00:48.3]} 28. Kf3 {[%clk 0:00:50.8]} 28... Nd6 {[%clk 0:00:48.5]} 29. Be3
{[%clk 0:00:43.9]} 29... Qd8 {[%clk 0:00:43.5]} 30. h4 {[%clk 0:00:42.1]} 30...
Ba7 {[%clk 0:00:33.5]} 31. Qa2 {[%clk 0:00:30.2]} 31... Nc7 {[%clk 0:00:27.5]}
32. Rc1 {[%clk 0:00:13.1]} 32... Kf8 {[%clk 0:00:21.2]} 33. Qc2 {[%clk 0:00:12]}
33... Re7 {[%clk 0:00:20.6]} 34. Bf2 {[%clk 0:00:09]} 34... Nce8 {[%clk
0:00:19.2]} 35. Qa2 {[%clk 0:00:06.4]} 35... Nf6 {[%clk 0:00:19.7]} 36. Nc3
{[%clk 0:00:06.5]} 36... Nde4 {[%clk 0:00:18.3]} 37. Ne2 {[%clk 0:00:03.3]}
37... Ng4 {[%clk 0:00:17.1]} 38. Bg1 {[%clk 0:00:03.5]} 38... Qd7 {[%clk
0:00:12.2]} 39. Qc2 {[%clk 0:00:03.7]} 39... Kf7 {[%clk 0:00:09.1]} 40. Qc8
{[%clk 0:00:03.9]} 40... Nd2+ {[%clk 0:00:09.3]} 41. Kg2 {[%clk 0:00:04]} 41...
Qd6 {[%clk 0:00:09.6]} 42. Qh8 {[%clk 0:00:03.5]} 42... Qa3 {[%clk 0:00:09.5]}
43. Rc8 {[%clk 0:00:03.9]} 43... Rd7 {[%clk 0:00:07.3]} 44. Qg8+ {[%clk
0:00:04.2]} 44... Kf6 {[%clk 0:00:07.8]} 45. Rf8+ {[%clk 0:00:04.5]} 45... Ke7
{[%clk 0:00:03.5]} 46. Qxg7+ {[%clk 0:00:05.1]} 46... Kd6 {[%clk 0:00:04.4]} 47.
Qxg6+ {[%clk 0:00:04.8]} 47... Kc7 {[%clk 0:00:05]} 48. Qe8 {[%clk 0:00:04.7]}
48... Qxd3 {[%clk 0:00:04.6]} 49. Qc8+ {[%clk 0:00:05.2]} 49... Kd6 {[%clk
0:00:05.2]} 50. b6 {[%clk 0:00:03]} 50... Qf3+ {[%clk 0:00:04.6]} 51. Kh3 {[%clk
0:00:02.9]} 51... Qf1# {[%clk 0:00:05.1]} 0-1